bitfinex/quotes_BTCUSD_20240911
["timestamp","ask_amount","ask_price","bid_price","bid_amount"]
[1726050704420,0.5566002,56715.0,56708.0,0.352683]
[1726050704421,0.0276342,56715.0,56708.0,0.352683]
[1726050704656,0.0276342,56715.0,56704.0,0.17594018]
[1726050704657,0.0276342,56715.0,56709.0,0.352675]
[1726050704871,0.0276342,56715.0,56713.0,0.176326]
[1726050705071,0.0276342,56715.0,56711.0,0.17633]
[1726050705279,0.0276342,56715.0,56710.0,0.176334]
[1726050705707,0.0276342,56715.0,56714.0,0.176323]
[1726050705922,0.0276342,56715.0,56706.0,0.352692]
[1726050706191,0.0276342,56715.0,56714.0,0.176323]
[1726050706409,0.176307,56719.0,56714.0,0.176323]
[1726050706637,0.177121,56720.0,56713.0,0.176324]
[1726050706862,0.177121,56720.0,56714.0,0.176323]
[1726050707073,0.177121,56720.0,56712.0,0.352659]
[1726050707074,0.000816,56720.0,56710.0,0.35267]
[1726050707527,0.4079855,56720.0,56711.0,0.352664]
[1726050707767,0.176311,56718.0,56713.0,0.176324]
[1726050708215,0.000816,56720.0,56710.0,0.35267]
[1726050708442,0.000816,56720.0,56719.0,0.176307]
[1726050708847,0.000816,56720.0,56719.0,0.528922]
[1726050709229,0.000816,56720.0,56719.0,1.3223075]
[1726050709432,0.000816,56720.0,56719.0,1.59841307]
[1726050711078,0.000816,56720.0,56719.0,2.12696825]
[1726050711591,0.000816,56720.0,56719.0,2.14996825]
[1726050712014,0.000816,56720.0,56719.0,2.29426825]
[1726050712241,0.0010952,56721.0,56720.0,0.176304]
[1726050712477,0.0010952,56721.0,56720.0,1.87406071]
[1726050714358,0.0010952,56721.0,56720.0,1.49845171]
[1726050717658,0.0010952,56721.0,56720.0,1.85106071]
[1726050717870,0.0010952,56721.0,56720.0,1.87406071]
[1726050718081,0.0010952,56721.0,56720.0,1.52145171]
[1726050719389,0.0581056,56739.0,56738.0,0.176248]
[1726050719607,0.0581056,56739.0,56738.0,0.5816207]
[1726050719821,0.0581056,56739.0,56738.0,0.881242]
[1726050720248,0.0021474,56741.0,56740.0,0.881212]
[1726050723170,0.0021474,56741.0,56740.0,1.233697]
[1726050723375,0.0021474,56741.0,56740.0,1.50980257]
[1726050723591,0.0021474,56741.0,56740.0,1.66078283]
[1726050724042,0.0021474,56741.0,56740.0,1.50980257]
[1726050724263,0.0021474,56741.0,56740.0,1.43439474]
[1726050724930,0.0021474,56741.0,56740.0,1.43439474]
[1726050727139,0.0021474,56741.0,56740.0,2.04281992]
[1726050727385,0.0021474,56741.0,56740.0,1.69033492]
[1726050727632,0.0029634,56741.0,56740.0,1.69033492]
[1726050727901,0.0029634,56741.0,56730.0,0.002]
[1726050727902,0.0670634,56741.0,56728.0,0.0781]
[1726050728141,0.25594018,56740.0,56716.0,0.20069774]
[1726050728384,0.352541,56731.0,56721.0,0.352599]
[1726050728603,0.176284,56727.0,56718.0,0.352618]
[1726050728814,0.17629,56725.0,56718.0,0.35224918]
[1726050729014,0.176285,56727.0,56720.0,0.176303]
[1726050729451,0.496643,56731.0,56718.0,0.52855818]
[1726050729658,0.352548,56730.0,56721.0,0.1763]
[1726050729893,0.176276,56730.0,56720.0,0.352605]
[1726050730107,0.176277,56729.0,56723.0,0.176294]
[1726050730324,0.320372,56731.0,56724.0,0.176291]
[1726050730533,0.320372,56731.0,56720.0,0.44072232]
[1726050730534,0.176277,56729.0,56722.0,0.176297]
[1726050730958,0.176277,56729.0,56720.0,0.352605]
[1726050730959,0.176278,56729.0,56723.0,0.176294]
[1726050731402,0.0641,56731.0,56721.0,0.352601]
[1726050731643,0.0641,56731.0,56716.0,0.35263]
[1726050731854,0.0641,56731.0,56717.0,0.17594018]
[1726050732075,0.352554,56729.0,56718.0,0.352618]
[1726050732280,0.176287,56726.0,56719.0,0.176305]
[1726050732506,0.176287,56726.0,56720.0,0.176303]
[1726050732722,0.176287,56726.0,56721.0,0.176301]
[1726050732937,0.17629,56725.0,56719.0,0.176305]
[1726050733149,0.20391906,56725.0,56720.0,0.176304]
[1726050733362,0.176299,56722.0,56718.0,0.17594018]
[1726050733573,0.176299,56722.0,56712.0,0.430753]
[1726050733574,0.0799,56723.0,56716.0,0.176315]
[1726050733789,0.0799,56723.0,56712.0,0.352653]
[1726050733991,0.0799,56723.0,56713.0,0.52859018]
[1726050734245,0.1763,56722.0,56716.0,0.176315]
[1726050734449,0.176301,56721.0,56716.0,0.176315]
[1726050734652,0.176309,56719.0,56715.0,0.176319]
[1726050734852,0.0799,56723.0,56713.0,0.17594018]
[1726050735096,0.176303,56721.0,56717.0,0.176313]
[1726050735560,0.528879,56724.0,56715.0,0.352639]
[1726050735774,0.176287,56726.0,56721.0,0.176298]
[1726050735986,0.434869,56727.0,56719.0,0.176305]
[1726050736191,0.434869,56727.0,56713.0,0.17594018]
[1726050736192,0.352589,56724.0,56715.0,0.176319]
[1726050736393,0.176302,56721.0,56716.0,0.176314]
[1726050736630,0.0823,56727.0,56713.0,0.35226518]
[1726050736631,0.176312,56718.0,56713.0,0.35226518]
[1726050736837,0.176317,56716.0,56708.0,0.0759]
[1726050737042,0.0618,56717.0,56714.0,0.176322]
[1726050737252,0.0618,56717.0,56711.0,0.352663]
[1726050737470,0.0618,56717.0,56713.0,0.176326]
[1726050737686,0.238114,56717.0,56713.0,0.176326]
[1726050737965,0.176321,56715.0,56711.0,0.176331]
[1726050738173,0.35266,56712.0,56704.0,0.176352]
[1726050738378,0.35266,56712.0,56704.0,0.176353]
[1726050738379,0.176342,56708.0,56704.0,0.176353]
[1726050738586,0.176343,56708.0,56704.0,0.176354]
[1726050738794,0.176345,56707.0,56702.0,0.70501818]
[1726050739000,0.176345,56707.0,56703.0,0.35229718]
[1726050739417,0.176341,56709.0,56704.0,0.176353]
[1726050739829,0.17633,56712.0,56708.0,0.176341]
[1726050740039,0.0618,56717.0,56716.0,0.176317]
[1726050740247,0.0618,56717.0,56709.0,0.0752]
[1726050740495,0.0616,56730.0,56710.0,0.26416663]
[1726050740713,0.0616,56730.0,56721.0,0.1763]
[1726050740714,0.176287,56726.0,56721.0,0.1763]
[1726050740924,0.176287,56726.0,56719.0,0.35261]
[1726050740925,0.17628,56728.0,56723.0,0.176294]
[1726050741129,0.352553,56729.0,56722.0,0.176297]
[1726050741347,0.0616,56730.0,56722.0,0.352596]
[1726050741546,0.0616,56730.0,56723.0,0.17594018]
[1726050741755,0.0616,56730.0,56725.0,0.352577]
[1726050742014,0.0616,56730.0,56725.0,0.352573]
[1726050742223,0.0616,56730.0,56728.0,0.176278]
[1726050742430,0.0626,56736.0,56726.0,0.27617129]
[1726050742641,0.0626,56736.0,56733.0,0.176261]
[1726050742853,0.352458,56745.0,56727.0,0.17594018]
[1726050742854,0.4180434,56741.0,56727.0,0.17594018]
[1726050743099,0.02762621,56738.0,56734.0,0.176258]
[1726050743314,0.02762621,56738.0,56727.0,0.17594018]
[1726050743528,0.0655634,56741.0,56740.0,0.176242]
[1726050743740,0.0029634,56741.0,56740.0,0.176242]
[1726050743950,0.0029634,56741.0,56735.0,0.352513]
[1726050744158,0.0029634,56741.0,56737.0,0.17625]
[1726050744624,0.176258,56735.0,56730.0,0.176272]
[1726050745935,0.176259,56735.0,56727.0,0.17628]
[1726050746150,0.176262,56734.0,56724.0,0.352581]
[1726050746376,0.1428,56732.0,56718.0,0.0526993]
[1726050746581,0.176287,56726.0,56719.0,0.176306]
[1726050746790,0.35255,56730.0,56719.0,0.176306]
[1726050747016,0.1428,56732.0,56720.0,0.17946603]
[1726050747229,0.1428,56732.0,56723.0,0.176292]
[1726050747230,0.176271,56731.0,56723.0,0.176292]
[1726050747439,0.20389922,56731.0,56720.0,0.17594018]
[1726050747650,0.02762822,56731.0,56723.0,0.352588]
[1726050747854,0.02762822,56731.0,56725.0,0.176288]
[1726050748057,0.02762822,56731.0,56723.0,0.176293]
[1726050748270,0.02762822,56731.0,56724.0,0.176292]
[1726050748271,0.20389922,56731.0,56724.0,0.176292]
[1726050749180,0.02762822,56731.0,56720.0,0.17594018]
[1726050749427,0.176296,56723.0,56716.0,0.176315]
[1726050749715,0.02762822,56731.0,56717.0,0.17594018]
[1726050750169,0.02762822,56731.0,56724.0,0.17629]
[1726050750170,0.17627,56731.0,56724.0,0.17629]
[1726050750411,0.17627,56731.0,56725.0,0.176289]
[1726050750839,0.17627,56731.0,56722.0,0.352593]
[1726050751045,0.17627,56731.0,56724.0,0.176292]
[1726050751462,0.416135,56732.0,56719.0,0.176306]
[1726050751463,0.176287,56726.0,56719.0,0.176306]
[1726050751671,0.176278,56729.0,56720.0,0.17594018]
[1726050751877,0.176278,56729.0,56722.0,0.176296]
[1726050752102,0.17628,56728.0,56722.0,0.176296]
[1726050752308,0.352549,56730.0,56720.0,0.35224218]
[1726050752522,0.176283,56727.0,56721.0,0.176301]
[1726050752731,0.176281,56728.0,56721.0,0.35224118]
[1726050752942,0.176281,56728.0,56715.0,0.352639]
[1726050752943,0.17629,56725.0,56715.0,0.352639]
[1726050753151,0.176285,56727.0,56719.0,0.176307]
[1726050753398,0.176285,56727.0,56721.0,0.1763]
[1726050753607,0.176286,56726.0,56719.0,0.35224618]
[1726050753820,0.0636,56732.0,56719.0,0.35224618]
[1726050753821,0.352568,56727.0,56719.0,0.17594018]
[1726050754028,0.1763,56722.0,56712.0,0.0804]
[1726050754241,0.0757,56724.0,56714.0,0.176322]
[1726050754242,0.240903,56721.0,56714.0,0.176322]
[1726050754462,0.240903,56721.0,56708.0,0.0526993]
[1726050754463,0.352615,56719.0,56708.0,0.0526993]
[1726050754700,0.176319,56716.0,56709.0,0.35227818]
[1726050754915,0.176324,56714.0,56709.0,0.17594018]
[1726050755166,0.27617129,56716.0,56701.0,0.078232]
[1726050755410,0.0646,56707.0,56701.0,0.001632]
[1726050755650,0.0757,56717.0,56701.0,0.001632]
[1726050755651,0.0646,56711.0,56705.0,0.176349]
[1726050755885,0.240933,56711.0,56704.0,0.176352]
[1726050756112,0.176343,56708.0,56701.0,0.001632]
[1726050756344,0.176348,56706.0,56701.0,0.001632]
[1726050756576,0.0757,56710.0,56701.0,0.001632]
[1726050756577,0.176344,56708.0,56701.0,0.001632]
[1726050756758,0.1,56707.0,56701.0,0.001632]
[1726050757169,0.276345,56707.0,56701.0,0.177993]
[1726050757441,0.17635,56706.0,56701.0,0.001632]
[1726050757673,0.1,56707.0,56701.0,0.001632]
[1726050757903,0.1,56708.0,56701.0,0.001632]
[1726050758128,0.176347,56707.0,56701.0,0.001632]
[1726050758996,0.1,56708.0,56701.0,0.001632]
[1726050759203,0.10333697,56710.0,56702.0,0.35272]
[1726050759204,0.1,56709.0,56702.0,0.35272]
[1726050759422,0.02763697,56710.0,56703.0,0.352714]
[1726050759634,0.02763697,56710.0,56706.0,0.176345]
[1726050760042,0.0646,56711.0,56706.0,0.176345]
[1726050760290,0.0646,56711.0,56702.0,0.0768]
[1726050760512,0.176339,56709.0,56703.0,0.176357]
[1726050760901,0.0646,56711.0,56707.0,0.176343]
[1726050761105,0.0646,56711.0,56702.0,0.25347018]
[1726050761106,0.176334,56711.0,56702.0,0.25347018]
[1726050761311,0.176334,56711.0,56705.0,0.17635]
[1726050761446,0.176338,56709.0,56703.0,0.176356]
[1726050761641,0.1,56713.0,56708.0,0.176341]
[1726050761824,0.176332,56711.0,56704.0,0.35229218]
[1726050762033,0.176332,56711.0,56705.0,0.176351]
[1726050762688,0.17634,56709.0,56705.0,0.00073]
[1726050762904,0.352673,56710.0,56705.0,0.00073]
[1726050763113,0.17634,56709.0,56705.0,0.00073]
[1726050763589,0.176333,56711.0,56705.0,0.177081]
[1726050763829,0.176343,56708.0,56705.0,0.00073]
[1726050764064,0.0629,56723.0,56706.0,0.31546692]
[1726050764300,0.176299,56722.0,56716.0,0.176316]
[1726050764938,0.176299,56722.0,56714.0,0.528965]
[1726050765148,0.415493,56723.0,56714.0,0.52858518]
[1726050765149,0.176302,56721.0,56714.0,0.52858518]
[1726050765566,0.176302,56721.0,56711.0,0.353393]
[1726050765567,0.176315,56717.0,56711.0,0.177062]
[1726050765780,0.0629,56723.0,56711.0,0.17667018]
[1726050765991,0.176318,56716.0,56711.0,0.17667018]
[1726050766203,0.0494473,56722.0,56711.0,0.17667018]
[1726050766204,0.176329,56712.0,56711.0,0.00073]
[1726050766410,0.528988,56712.0,56711.0,0.00073]
[1726050767054,0.595088,56712.0,56711.0,0.00073]
[1726050767300,0.947747,56712.0,56711.0,0.00073]
[1726050768134,1.300406,56712.0,56711.0,0.00073]
[1726050768354,0.947747,56712.0,56711.0,0.00073]
[1726050768602,0.242429,56712.0,56711.0,0.00073]
[1726050769435,0.595088,56712.0,56711.0,0.00073]
[1726050769874,0.242429,56712.0,56711.0,0.00073]
[1726050770326,0.176318,56716.0,56711.0,0.00073]
[1726050770535,0.176317,56716.0,56711.0,0.00073]
[1726050770736,0.0606,56718.0,56711.0,0.177059]
[1726050770960,0.17632,56715.0,56711.0,0.00073]
[1726050771389,0.176315,56717.0,56711.0,0.177061]
[1726050772488,0.176315,56717.0,56712.0,0.176328]
[1726050773383,0.176315,56717.0,56711.0,0.00073]
[1726050773384,0.0765224,56717.0,56711.0,0.00073]
[1726050773588,0.176323,56715.0,56711.0,0.00073]
[1726050773796,0.176324,56714.0,56711.0,0.00073]
[1726050774666,0.176319,56716.0,56711.0,0.00073]
[1726050774882,1.234306,56712.0,56711.0,0.00073]
[1726050775100,1.58304618,56712.0,56711.0,0.00073]
[1726050775338,2.06334386,56712.0,56711.0,0.00073]
[1726050775972,1.71068486,56712.0,56711.0,0.00073]
[1726050776631,2.31204386,56712.0,56711.0,0.00073]
[1726050776838,2.51121341,56712.0,56711.0,0.00073]
[1726050777255,2.37747294,56712.0,56711.0,0.00073]
[1726050777474,2.32451341,56712.0,56711.0,0.00073]
[1726050777677,2.30151341,56712.0,56711.0,0.00073]
[1726050777883,2.27151341,56712.0,56711.0,0.00073]
[1726050778732,2.30151341,56712.0,56711.0,0.00073]
[1726050778955,2.29951341,56712.0,56711.0,0.00073]
[1726050779593,0.691888,56712.0,56711.0,0.00073]
[1726050779824,1.044547,56712.0,56711.0,0.00073]
[1726050781241,1.397206,56712.0,56711.0,0.00073]
[1726050781490,1.044547,56712.0,56711.0,0.00073]
[1726050781747,0.352637,56716.0,56711.0,0.00073]
[1726050781986,0.176316,56717.0,56711.0,0.00073]
[1726050782235,0.02763939,56718.0,56711.0,0.06203]
[1726050782466,0.02763939,56718.0,56711.0,0.00073]
[1726050782467,0.176329,56713.0,56711.0,0.00073]
[1726050782967,0.176324,56714.0,56711.0,0.00073]
[1726050783209,0.176329,56712.0,56711.0,0.00073]
[1726050783451,0.352643,56715.0,56711.0,0.00073]
[1726050783695,0.176322,56715.0,56711.0,0.00073]
[1726050784175,0.528988,56712.0,56711.0,0.00073]
[1726050786548,0.176325,56714.0,56711.0,0.002364]
[1726050786750,0.35263,56717.0,56712.0,0.077]
[1726050786953,0.1,56716.0,56712.0,0.077]
[1726050787129,0.276318,56716.0,56712.0,0.077]
[1726050787543,0.1,56716.0,56712.0,0.077]
[1726050787742,0.352629,56717.0,56712.0,0.077]
[1726050787961,0.628945,56717.0,56712.0,0.077]
[1726050788175,0.413084,56724.0,56712.0,0.077]
[1726050788176,0.352592,56723.0,56714.0,0.0651]
[1726050788388,0.38021096,56726.0,56714.0,0.0651]
[1726050788389,0.176299,56722.0,56714.0,0.0651]
[1726050788597,0.176299,56722.0,56717.0,0.176313]
[1726050788817,0.176299,56722.0,56717.0,0.06196145]
[1726050789023,0.176299,56722.0,56717.0,0.176312]
[1726050789432,0.0609,56728.0,56714.0,0.241422]
[1726050789433,0.352593,56723.0,56714.0,0.241422]
[1726050789638,0.27644423,56726.0,56712.0,0.077]
[1726050789846,0.176326,56713.0,56712.0,0.077]
[1726050790051,0.17632,56715.0,56712.0,0.077]
[1726050790258,0.176325,56714.0,56712.0,0.077]
[1726050790462,0.528988,56712.0,56707.0,0.0793]
[1726050790876,0.54474758,56712.0,56702.0,0.001634]
[1726050791098,0.89740658,56712.0,56702.0,0.001634]
[1726050791323,1.52600576,56712.0,56702.0,0.001634]
[1726050791535,1.87283209,56712.0,56702.0,0.001634]
[1726050791759,2.22549109,56712.0,56702.0,0.001634]
[1726050791993,2.27841123,56712.0,56702.0,0.001634]
[1726050792211,1.66666254,56712.0,56702.0,0.001634]
[1726050793090,2.16423916,56712.0,56702.0,0.001634]
[1726050793319,2.18723916,56712.0,56702.0,0.001634]
[1726050793529,2.29714269,56712.0,56702.0,0.001634]
[1726050793753,2.85225964,56712.0,56702.0,0.001634]
[1726050793988,2.49960064,56712.0,56702.0,0.001634]
[1726050794445,2.39444703,56712.0,56702.0,0.001634]
[1726050794659,2.74710603,56712.0,56702.0,0.001634]
[1726050794982,2.29711406,56712.0,56702.0,0.001634]
[1726050795198,2.1715228,56712.0,56702.0,0.001634]
[1726050795426,2.24575842,56712.0,56702.0,0.001634]
[1726050796565,2.24575842,56712.0,56695.0,0.001632]
[1726050796566,1.51109723,56696.0,56695.0,0.001632]
[1726050796827,1.70243348,56696.0,56695.0,0.001632]
[1726050797301,1.730081,56696.0,56695.0,0.001632]
[1726050797520,1.55391145,56696.0,56695.0,0.001632]
[1726050798164,1.5382407,56696.0,56695.0,0.001632]
[1726050800210,1.86335118,56696.0,56695.0,0.001632]
[1726050801700,1.51059318,56696.0,56695.0,0.001632]
[1726050801932,1.54259318,56696.0,56695.0,0.001632]
[1726050802166,2.07152073,56696.0,56695.0,0.001632]
[1726050802398,2.10152073,56696.0,56695.0,0.001632]
[1726050802870,2.13152073,56696.0,56695.0,0.001632]
[1726050803193,2.15917064,56696.0,56695.0,0.001632]
[1726050803715,2.15917064,56696.0,56692.0,0.001632]
[1726050803716,1.60316323,56693.0,56692.0,0.001632]
[1726050803945,2.27758041,56693.0,56692.0,0.001632]
[1726050804180,2.73035741,56693.0,56692.0,0.001632]
[1726050804415,2.75335741,56693.0,56692.0,0.001632]
[1726050804890,1.679636,56688.0,56675.0,0.0026518]
[1726050805102,2.29822041,56688.0,56675.0,0.0026518]
[1726050805320,2.65102841,56688.0,56675.0,0.0026518]
[1726050805558,2.67868228,56688.0,56675.0,0.0026518]
[1726050806018,2.75888228,56688.0,56675.0,0.0026518]
[1726050806244,2.90128155,56688.0,56675.0,0.0026518]
[1726050807181,2.95400927,56688.0,56675.0,0.0026518]
[1726050807398,3.32981727,56688.0,56687.0,8e-07]
[1726050807611,3.28416155,56688.0,56687.0,8e-07]
[1726050808056,2.36603014,56688.0,56687.0,8e-07]
[1726050808312,1.90938591,56688.0,56687.0,8e-07]
[1726050808730,1.84318591,56688.0,56687.0,8e-07]
[1726050808939,1.46037791,56688.0,56687.0,8e-07]
[1726050809198,0.91674587,56688.0,56687.0,0.1465008]
[1726050809449,0.529212,56688.0,56687.0,0.1465008]
[1726050809987,0.88202,56688.0,56687.0,0.1465008]
[1726050810410,1.0055008,56688.0,56687.0,0.1465008]
[1726050810642,0.88202,56688.0,56687.0,0.1465008]
[1726050810898,0.98202,56688.0,56687.0,0.1465008]
[1726050811587,0.98202,56688.0,56687.0,0.1481368]
[1726050811822,0.98202,56688.0,56687.0,0.0016368]
[1726050812033,1.334828,56688.0,56687.0,0.0016368]
[1726050812274,1.51099755,56688.0,56687.0,0.0016368]
[1726050813114,1.75463773,56688.0,56687.0,0.0016368]
[1726050813361,1.75263773,56688.0,56687.0,0.0016368]
[1726050813569,0.98202,56688.0,56687.0,0.0016368]
[1726050813778,1.334828,56688.0,56687.0,0.0016368]
[1726050816988,0.98202,56688.0,56687.0,0.0016368]
[1726050818584,0.0276488,56690.0,56687.0,0.1498368]
[1726050818801,0.529212,56688.0,56687.0,0.1498368]
[1726050819012,0.54478832,56688.0,56687.0,0.1498368]
[1726050819222,0.89759632,56688.0,56687.0,0.1498368]
[1726050820074,0.88202,56688.0,56687.0,0.1498368]
[1726050820911,0.970222,56688.0,56687.0,0.0016368]
[1726050821112,0.970222,56688.0,56687.0,0.001636]
[1726050821113,1.070222,56688.0,56687.0,0.001636]
[1726050821320,1.42303,56688.0,56687.0,0.001636]
[1726050821737,1.59897018,56688.0,56687.0,0.001636]
[1726050822376,1.51076818,56688.0,56687.0,0.001636]
[1726050822601,1.89357618,56688.0,56687.0,0.001636]
[1726050822805,1.97657618,56688.0,56687.0,0.001636]
[1726050823020,1.97657618,56688.0,56672.0,0.0612]
[1726050823021,0.882252,56673.0,56672.0,0.0503752]
[1726050823238,0.982252,56673.0,56672.0,0.0503752]
[1726050824318,1.1157649,56673.0,56672.0,0.0503752]
[1726050824602,0.982252,56673.0,56672.0,0.0503752]
[1726050825054,0.1,56673.0,56672.0,0.0503752]
[1726050825280,0.17645,56674.0,56672.0,0.0503752]
[1726050825538,0.001,56673.0,56672.0,0.0513752]
[1726050825766,0.530351,56673.0,56672.0,0.0513752]
[1726050826018,0.9462854,56673.0,56672.0,0.0513752]
[1726050826308,1.0462854,56673.0,56672.0,0.0513752]
[1726050826545,1.0452854,56673.0,56672.0,0.0503752]
[1726050826803,1.07294048,56673.0,56672.0,0.0513752]
[1726050827034,0.20410508,56673.0,56672.0,0.0513752]
[1726050827254,0.55700608,56673.0,56672.0,0.0513752]
[1726050829208,0.55700608,56673.0,56672.0,0.0503752]
[1726050829451,0.882267,56672.0,56671.0,0.0752]
[1726050829693,0.97325641,56672.0,56671.0,0.0752]
[1726050831072,0.62034941,56672.0,56671.0,0.0752]
[1726050831327,0.62034941,56672.0,56669.0,0.0024574]
[1726050831328,0.882285,56671.0,56669.0,0.0024574]
[1726050831542,1.44252644,56671.0,56669.0,0.0024574]
[1726050833157,1.44252644,56671.0,56670.0,0.002632]
[1726050833158,1.4701838,56671.0,56670.0,0.002632]
[1726050834591,1.36285636,56671.0,56670.0,0.001632]
[1726050834833,0.629371,56671.0,56670.0,0.001632]
[1726050835067,0.001,56671.0,56670.0,0.081932]
[1726050835288,0.177457,56671.0,56670.0,0.143532]
[1726050835517,0.176457,56671.0,56670.0,0.142532]
[1726050835742,0.177457,56671.0,56670.0,0.143532]
[1726050836184,0.177457,56671.0,56670.0,0.142532]
[1726050836398,0.176448,56674.0,56670.0,0.31899]
[1726050836612,0.001,56671.0,56670.0,0.143532]
[1726050837031,0.001,56671.0,56670.0,0.319992]
[1726050837454,0.001,56671.0,56670.0,0.143532]
[1726050838124,0.001,56671.0,56670.0,0.319992]
[1726050838586,0.02765447,56672.0,56670.0,0.318992]
[1726050838798,0.001,56671.0,56670.0,0.671912]
[1726050839066,0.001,56671.0,56670.0,0.318992]
[1726050839289,0.02765447,56672.0,56670.0,0.142532]
[1726050839516,0.20410947,56672.0,56670.0,0.142532]
[1726050839730,0.007,56671.0,56670.0,0.143532]
[1726050840131,0.006,56671.0,56670.0,0.093532]
[1726050840381,0.007,56671.0,56670.0,0.098532]
[1726050840582,0.001,56671.0,56670.0,0.092532]
[1726050840789,0.001,56671.0,56670.0,0.095532]
[1726050840992,0.883285,56671.0,56670.0,0.003]
[1726050841198,1.2892341,56671.0,56670.0,0.003]
[1726050841422,1.336199,56671.0,56670.0,0.006]
[1726050841669,1.335199,56671.0,56670.0,0.006]
[1726050842101,1.336199,56671.0,56670.0,0.007]
[1726050842553,1.335199,56671.0,56670.0,0.006]
[1726050842966,1.336199,56671.0,56670.0,0.001]
[1726050843167,1.51190571,56671.0,56670.0,0.001]
[1726050843372,1.52090571,56671.0,56670.0,0.002]
[1726050843578,1.52090571,56671.0,56670.0,0.001]
[1726050844073,1.38185581,56671.0,56670.0,0.002]
[1726050845249,1.02894181,56671.0,56670.0,0.002]
[1726050845667,1.38185581,56671.0,56670.0,0.002]
[1726050846290,1.91070999,56671.0,56670.0,0.002]
[1726050846504,1.55779599,56671.0,56670.0,0.002]
[1726050846714,1.73396554,56671.0,56670.0,0.002]
[1726050847776,1.73415854,56671.0,56670.0,0.002]
[1726050848394,1.73415854,56671.0,56670.0,0.003636]
[1726050848606,2.0265442,56671.0,56670.0,0.003636]
[1726050849015,2.1708442,56671.0,56670.0,0.003636]
[1726050849648,2.5237582,56671.0,56670.0,0.003636]
[1726050849849,2.1708442,56671.0,56670.0,0.003636]
[1726050850094,2.5237582,56671.0,56670.0,0.003636]
[1726050850308,2.49610139,56671.0,56670.0,0.003636]
[1726050850751,2.49810139,56671.0,56670.0,0.003636]
[1726050850978,2.49610139,56671.0,56670.0,0.003636]
[1726050852088,2.49810139,56671.0,56670.0,0.003636]
[1726050853183,2.52376232,56671.0,56670.0,0.003636]
[1726050853824,2.52576232,56671.0,56670.0,0.003636]
[1726050855108,3.02150282,56671.0,56670.0,0.003636]
[1726050855807,3.06754594,56671.0,56670.0,0.003636]
[1726050856227,3.02150282,56671.0,56670.0,0.003636]
[1726050856866,2.41475313,56671.0,56670.0,0.003636]
[1726050857096,2.39175313,56671.0,56670.0,0.003636]
[1726050857529,2.74466713,56671.0,56670.0,0.003636]
[1726050857742,2.72666713,56671.0,56670.0,0.002636]
[1726050857978,2.37375313,56671.0,56670.0,0.002636]
[1726050858185,2.16458358,56671.0,56670.0,0.001636]
[1726050858398,2.47341927,56671.0,56670.0,0.001636]
[1726050858608,2.47341927,56671.0,56670.0,1e-06]
[1726050858609,2.53310392,56671.0,56670.0,1e-06]
[1726050858817,2.25626823,56671.0,56670.0,1e-06]
[1726050859024,2.25626823,56671.0,56669.0,0.0024574]
[1726050859025,1.72582465,56670.0,56669.0,4e-07]
[1726050859231,2.51638483,56670.0,56669.0,4e-07]
[1726050859443,2.86930483,56670.0,56669.0,4e-07]
[1726050859687,2.96789096,56670.0,56669.0,4e-07]
[1726050859910,3.0645306,56670.0,56669.0,4e-07]
[1726050860118,3.01884595,56670.0,56669.0,4e-07]
[1726050860324,3.03284595,56670.0,56669.0,4e-07]
[1726050861795,3.04684595,56670.0,56669.0,0.0010004]
[1726050862010,2.25600595,56670.0,56669.0,0.0010004]
[1726050862214,1.84490668,56670.0,56669.0,0.0010004]
[1726050862389,1.49198668,56670.0,56669.0,0.0010004]
[1726050862948,0.9491265,56670.0,56669.0,4e-07]
[1726050863174,0.5822065,56670.0,56669.0,4e-07]
[1726050863384,0.0668265,56670.0,56669.0,0.1430004]
[1726050863566,0.0768265,56670.0,56669.0,0.1440004]
[1726050863764,0.0768265,56670.0,56669.0,0.1430004]
[1726050864017,0.2532865,56670.0,56669.0,0.1440004]
[1726050864243,0.029,56670.0,56669.0,0.6733894]
[1726050864483,0.019,56670.0,56669.0,0.3194634]
[1726050864721,0.005,56670.0,56669.0,0.6743894]
[1726050864950,0.001011,56671.0,56670.0,0.17646]
[1726050865180,0.0187566,56671.0,56669.0,0.1430004]
[1726050865643,0.0187566,56671.0,56669.0,0.1420004]
[1726050865903,0.001011,56671.0,56669.0,0.1420004]
[1726050866346,0.001011,56671.0,56669.0,0.1450004]
[1726050866598,0.001011,56671.0,56669.0,0.1420004]
[1726050866826,0.001011,56671.0,56669.0,0.3184634]
[1726050867041,0.002011,56671.0,56670.0,0.17646]
[1726050867253,0.002011,56671.0,56670.0,0.67910905]
[1726050867461,0.001011,56671.0,56670.0,1.0285]
[1726050867902,0.002011,56671.0,56670.0,1.0285]
[1726050868107,0.001011,56671.0,56670.0,1.0285]
[1726050868316,0.008011,56671.0,56670.0,1.0285]
[1726050868778,0.008011,56671.0,56670.0,1.78170605]
[1726050868982,0.001011,56671.0,56670.0,1.78170605]
[1726050869206,0.001011,56671.0,56670.0,1.78270605]
[1726050869412,0.001011,56671.0,56670.0,1.42978605]
[1726050869413,0.002011,56671.0,56670.0,1.42978605]
[1726050869616,0.002011,56671.0,56670.0,1.22844018]
[1726050869845,0.001011,56671.0,56670.0,0.85152018]
[1726050870046,0.002011,56671.0,56670.0,0.85952018]
[1726050870270,0.002011,56671.0,56670.0,1.58836018]
[1726050870529,0.001011,56671.0,56670.0,1.78270605]
[1726050870759,0.002011,56671.0,56670.0,1.78970605]
[1726050871223,0.001011,56671.0,56670.0,1.78470605]
[1726050871446,0.002011,56671.0,56670.0,1.79170605]
[1726050871828,0.002011,56671.0,56670.0,2.1941524]
[1726050872040,0.003011,56671.0,56670.0,2.2001524]
[1726050872419,0.003011,56671.0,56670.0,2.0925704]
[1726050872631,0.002011,56671.0,56670.0,1.86787304]
[1726050872830,0.002011,56671.0,56670.0,0.59176717]
[1726050873047,0.003011,56671.0,56670.0,0.51260018]
[1726050873225,0.002011,56671.0,56670.0,0.50560018]